[Event "TOP 12F 2021"]
[Site "RENNES, France"]
[Date "2021.08.26"]
[Round "1.6"]
[White "Navrotescu, Andreea"]
[Black "Gaponenko, Inna"]
[Result "0-1"]
[TimeControl "1H30 + 30 sec/coup"]
[WhiteElo "2249"]
[BlackElo "2357"]

1. c4 {[%clk 01:30:57]} {[%emt 00:00:02]} e6 {[%clk 01:30:09]} {[%emt
00:00:52]} 2. Nc3 {[%clk 01:30:49]} {[%emt 00:00:38]} d5 {[%clk 01:28:20]}
{[%emt 00:02:18]} 3. d4 {[%clk 01:31:10]} {[%emt 00:00:09]} c6 {[%clk
01:27:44]} {[%emt 00:01:07]} 4. e4 {[%clk 01:25:57]} {[%emt 00:05:43]} dxe4
{[%clk 01:27:36]} {[%emt 00:00:38]} 5. Nxe4 {[%clk 01:26:24]} {[%emt 00:00:03]}
Bb4+ {[%clk 01:27:57]} {[%emt 00:00:08]} 6. Nc3 {[%clk 01:26:20]} {[%emt
00:00:34]} e5 {[%clk 01:26:26]} {[%emt 00:02:01]} 7. a3 {[%clk 01:20:48]}
{[%emt 00:06:03]} Bxc3+ {[%clk 01:25:17]} {[%emt 00:01:38]} 8. bxc3 {[%clk
01:21:15]} {[%emt 00:00:03]} Qa5 {[%clk 01:25:37]} {[%emt 00:00:10]} 9. Bd2
{[%clk 01:20:45]} {[%emt 00:01:01]} Nf6 {[%clk 01:23:40]} {[%emt 00:02:26]} 10.
Bd3 {[%clk 01:16:36]} {[%emt 00:04:40]} e4 {[%clk 00:45:49]} {[%emt 00:38:20]}
11. Be2 {[%clk 01:08:07]} {[%emt 00:08:58]} b6 {[%clk 00:30:35]} {[%emt
00:15:45]} 12. h4 {[%clk 01:05:56]} {[%emt 00:02:40]} O-O {[%clk 00:18:02]}
{[%emt 00:13:03]} 13. Nh3 {[%clk 01:04:00]} {[%emt 00:02:26]} Re8 {[%clk
00:17:58]} {[%emt 00:00:34]} 14. Nf4 {[%clk 01:00:29]} {[%emt 00:04:00]} e3
{[%clk 00:17:15]} {[%emt 00:01:14]} 15. fxe3 {[%clk 00:42:27]} {[%emt
00:18:32]} Ne4 {[%clk 00:17:41]} {[%emt 00:00:03]} 16. O-O {[%clk 00:42:07]}
{[%emt 00:00:50]} Nd7 {[%clk 00:18:06]} {[%emt 00:00:06]} 17. Bd3 {[%clk
00:33:16]} {[%emt 00:09:21]} Ndf6 {[%clk 00:18:30]} {[%emt 00:00:06]} 18. Qc2
{[%clk 00:32:32]} {[%emt 00:01:13]} h6 {[%clk 00:11:27]} {[%emt 00:07:33]} 19.
d5 {[%clk 00:30:36]} {[%emt 00:02:26]} Qc5 {[%clk 00:11:26]} {[%emt 00:00:31]}
20. Rae1 {[%clk 00:28:30]} {[%emt 00:02:36]} Ba6 {[%clk 00:08:40]} {[%emt
00:03:17]} 21. Nh5 {[%clk 00:17:32]} {[%emt 00:11:26]} Bxc4 {[%clk 00:08:39]}
{[%emt 00:00:31]} 22. Nxf6+ {[%clk 00:15:03]} {[%emt 00:03:00]} Nxf6 {[%clk
00:09:07]} {[%emt 00:00:02]} 23. Bxc4 {[%clk 00:10:02]} {[%emt 00:05:32]} Qxc4
{[%clk 00:09:36]} {[%emt 00:00:01]} 24. Rf4 {[%clk 00:08:43]} {[%emt 00:01:48]}
Ne4 {[%clk 00:08:08]} {[%emt 00:01:58]} 25. Ref1 {[%clk 00:05:57]} {[%emt
00:03:16]} Qxd5 {[%clk 00:06:18]} {[%emt 00:02:21]} 26. Be1 {[%clk 00:06:18]}
{[%emt 00:00:09]} Re7 {[%clk 00:06:19]} {[%emt 00:00:28]} 27. c4 {[%clk
00:05:46]} {[%emt 00:01:03]} Qe6 {[%clk 00:06:10]} {[%emt 00:00:38]} 28. h5
{[%clk 00:02:57]} {[%emt 00:03:18]} Rae8 {[%clk 00:05:30]} {[%emt 00:01:11]} 29.
Bh4 {[%clk 00:02:19]} {[%emt 00:01:08]} Rd7 {[%clk 00:05:28]} {[%emt 00:00:33]}
30. Rd1 {[%clk 00:02:05]} {[%emt 00:00:44]} Rxd1+ {[%clk 00:03:36]} {[%emt
00:02:22]} 31. Qxd1 {[%clk 00:02:34]} {[%emt 00:00:01]} Nc3 {[%clk 00:03:47]}
{[%emt 00:00:19]} 32. Qf1 {[%clk 00:02:16]} {[%emt 00:00:47]} Qxe3+ {[%clk
00:03:52]} {[%emt 00:00:25]} 33. Kh1 {[%clk 00:02:45]} {[%emt 00:00:01]} Qe2
{[%clk 00:01:27]} {[%emt 00:02:56]} 34. Rxf7 {[%clk 00:01:15]} {[%emt
00:01:59]} Qxh5 {[%clk 00:01:35]} {[%emt 00:00:22]} 35. Rf4 {[%clk 00:00:52]}
{[%emt 00:00:53]} Ne2 {[%clk 00:01:46]} {[%emt 00:00:18]} 0-1

[Event "TOP 12F 2021"]
[Site "RENNES, France"]
[Date "2021.08.26"]
[Round "1.7"]
[White "Haussernot, Cecile"]
[Black "Broly, Mathilde"]
[Result "1-0"]
[TimeControl "1H30 + 30 sec/coup"]
[WhiteElo "2171"]
[BlackElo "2154"]

1. d4 {[%clk 01:30:57]} {[%emt 00:00:02]} Nf6 {[%clk 01:29:15]} {[%emt
00:01:45]} 2. Bf4 {[%clk 01:31:16]} {[%emt 00:00:12]} d5 {[%clk 01:22:30]}
{[%emt 00:07:14]} 3. e3 {[%clk 01:28:46]} {[%emt 00:03:01]} g6 {[%clk
01:17:49]} {[%emt 00:05:11]} 4. Nf3 {[%clk 01:25:07]} {[%emt 00:04:09]} Bg7
{[%clk 01:16:39]} {[%emt 00:01:39]} 5. c3 {[%clk 01:23:00]} {[%emt 00:02:38]}
O-O {[%clk 01:11:52]} {[%emt 00:05:16]} 6. Bd3 {[%clk 01:21:32]} {[%emt
00:01:58]} b6 {[%clk 01:09:20]} {[%emt 00:03:02]} 7. Qe2 {[%clk 01:20:12]}
{[%emt 00:01:51]} Bb7 {[%clk 01:07:57]} {[%emt 00:01:53]} 8. Nbd2 {[%clk
01:20:10]} {[%emt 00:00:32]} c5 {[%clk 01:06:04]} {[%emt 00:02:22]} 9. O-O
{[%clk 01:02:27]} {[%emt 00:18:14]} Nc6 {[%clk 00:46:59]} {[%emt 00:19:34]} 10.
h3 {[%clk 00:58:00]} {[%emt 00:04:58]} Nd7 {[%clk 00:41:53]} {[%emt 00:05:36]}
11. Rad1 {[%clk 00:51:14]} {[%emt 00:07:16]} e5 {[%clk 00:34:39]} {[%emt
00:07:44]} 12. dxe5 {[%clk 00:51:26]} {[%emt 00:00:19]} Ndxe5 {[%clk 00:34:49]}
{[%emt 00:00:19]} 13. Ba6 {[%clk 00:48:12]} {[%emt 00:03:45]} Bxa6 {[%clk
00:30:50]} {[%emt 00:04:29]} 14. Qxa6 {[%clk 00:48:36]} {[%emt 00:00:06]} Qf6
{[%clk 00:26:54]} {[%emt 00:04:25]} 15. Bg5 {[%clk 00:33:03]} {[%emt 00:16:04]}
Qf5 {[%clk 00:25:25]} {[%emt 00:01:59]} 16. Nxe5 {[%clk 00:32:28]} {[%emt
00:01:05]} Nxe5 {[%clk 00:24:26]} {[%emt 00:01:29]} 17. f4 {[%clk 00:28:50]}
{[%emt 00:04:09]} Qd3 {[%clk 00:16:26]} {[%emt 00:08:28]} 18. Qb7 {[%clk
00:14:05]} {[%emt 00:15:17]} Rfb8 {[%clk 00:06:54]} {[%emt 00:10:02]} 19. Qc7
{[%clk 00:06:50]} {[%emt 00:07:45]} Qxe3+ {[%clk 00:06:52]} {[%emt 00:00:31]}
20. Kh2 {[%clk 00:07:11]} {[%emt 00:00:09]} Nd3 {[%clk 00:06:52]} {[%emt
00:00:30]} 21. Nf3 {[%clk 00:04:43]} {[%emt 00:02:58]} h6 {[%clk 00:04:52]}
{[%emt 00:02:30]} 22. Bh4 {[%clk 00:04:52]} {[%emt 00:00:22]} Rc8 {[%clk
00:02:58]} {[%emt 00:02:24]} 23. Qb7 {[%clk 00:04:52]} {[%emt 00:00:30]} d4
{[%clk 00:02:35]} {[%emt 00:00:53]} 24. Ne5 {[%clk 00:02:40]} {[%emt 00:02:42]}
Nxe5 {[%clk 00:01:34]} {[%emt 00:01:31]} 25. fxe5 {[%clk 00:01:35]} {[%emt
00:01:35]} Qxe5+ {[%clk 00:01:41]} {[%emt 00:00:22]} 26. Bg3 {[%clk 00:02:00]}
{[%emt 00:00:06]} Qe8 {[%clk 00:01:23]} {[%emt 00:00:47]} 27. Rde1 {[%clk
00:02:12]} {[%emt 00:00:18]} Qf8 {[%clk 00:00:59]} {[%emt 00:00:54]} 28. Re7
{[%clk 00:02:26]} {[%emt 00:00:16]} f6 {[%clk 00:01:23]} {[%emt 00:00:06]} 29.
Bd6 {[%clk 00:02:19]} {[%emt 00:00:38]} Rd8 {[%clk 00:01:38]} {[%emt 00:00:14]}
30. Qd5+ {[%clk 00:00:46]} {[%emt 00:02:03]} Kh8 {[%clk 00:01:43]} {[%emt
00:00:25]} 31. Rfe1 {[%clk 00:00:42]} {[%emt 00:00:35]} Qg8 {[%clk 00:01:32]}
{[%emt 00:00:41]} 32. Qc6 {[%clk 00:00:35]} {[%emt 00:00:37]} Bf8 {[%clk
00:00:43]} {[%emt 00:01:19]} 33. cxd4 {[%clk 00:00:40]} {[%emt 00:00:25]} cxd4
{[%clk 00:00:53]} {[%emt 00:00:19]} 34. Bb4 {[%clk 00:00:36]} {[%emt 00:00:34]}
Bg7 {[%clk 00:00:32]} {[%emt 00:00:50]} 35. Rxg7 {[%clk 00:00:36]} {[%emt
00:00:30]} Qxg7 {[%clk 00:01:01]} {[%emt 00:00:02]} 36. Re7 {[%clk 00:01:00]}
{[%emt 00:00:06]} Qf8 {[%clk 00:01:25]} {[%emt 00:00:05]} 37. Rc7 {[%clk
00:01:01]} {[%emt 00:00:29]} Re8 {[%clk 00:00:33]} {[%emt 00:01:22]} 38. Bxf8
{[%clk 00:01:24]} {[%emt 00:00:07]} Rxf8 {[%clk 00:00:58]} {[%emt 00:00:05]}
1-0

[Event "TOP 12F 2021"]
[Site "RENNES, France"]
[Date "2021.08.26"]
[Round "1.8"]
[White "Nicoara, Malina"]
[Black "Thomas, Apolline"]
[Result "1/2-1/2"]
[TimeControl "1H30 + 30 sec/coup"]
[WhiteElo "2066"]
[BlackElo "1954"]

1. d4 {[%clk 01:30:56]} {[%emt 00:00:03]} d5 {[%clk 01:30:55]} {[%emt
00:00:05]} 2. c4 {[%clk 01:31:18]} {[%emt 00:00:08]} c6 {[%clk 01:31:20]}
{[%emt 00:00:05]} 3. Nf3 {[%clk 01:31:43]} {[%emt 00:00:05]} Nf6 {[%clk
01:31:46]} {[%emt 00:00:04]} 4. Nc3 {[%clk 01:32:08]} {[%emt 00:00:04]} dxc4
{[%clk 01:32:12]} {[%emt 00:00:04]} 5. a4 {[%clk 01:29:50]} {[%emt 00:02:48]}
Bf5 {[%clk 01:32:23]} {[%emt 00:00:19]} 6. Bf4 {[%clk 01:30:10]} {[%emt
00:00:09]} e6 {[%clk 01:31:30]} {[%emt 00:01:24]} 7. e3 {[%clk 01:30:29]}
{[%emt 00:00:11]} Bb4 {[%clk 01:30:50]} {[%emt 00:01:10]} 8. Bxc4 {[%clk
01:29:03]} {[%emt 00:01:56]} Ne4 {[%clk 01:26:18]} {[%emt 00:05:02]} 9. Qb3
{[%clk 01:19:03]} {[%emt 00:10:30]} Qe7 {[%clk 01:19:42]} {[%emt 00:07:05]} 10.
h3 {[%clk 01:14:18]} {[%emt 00:05:15]} O-O {[%clk 01:17:17]} {[%emt 00:02:56]}
11. O-O {[%clk 01:13:51]} {[%emt 00:00:57]} a5 {[%clk 01:09:53]} {[%emt
00:07:54]} 12. Rfd1 {[%clk 01:03:31]} {[%emt 00:10:50]} Na6 {[%clk 01:09:23]}
{[%emt 00:01:00]} 13. Rac1 {[%clk 00:55:59]} {[%emt 00:08:02]} Nc7 {[%clk
00:52:17]} {[%emt 00:17:36]} 14. Nxe4 {[%clk 00:44:56]} {[%emt 00:11:33]} Bxe4
{[%clk 00:52:05]} {[%emt 00:00:42]} 15. Ng5 {[%clk 00:45:14]} {[%emt 00:00:12]}
Bg6 {[%clk 00:48:14]} {[%emt 00:04:20]} 16. Nf3 {[%clk 00:27:36]} {[%emt
00:18:10]} Nd5 {[%clk 00:38:17]} {[%emt 00:10:26]} 17. Bg3 {[%clk 00:27:47]}
{[%emt 00:00:19]} Bh5 {[%clk 00:30:34]} {[%emt 00:08:14]} 18. e4 {[%clk
00:26:44]} {[%emt 00:01:34]} Nb6 {[%clk 00:30:49]} {[%emt 00:00:14]} 19. Be2
{[%clk 00:26:36]} {[%emt 00:00:38]} Rac8 {[%clk 00:30:32]} {[%emt 00:00:47]} 20.
Bh4 {[%clk 00:20:42]} {[%emt 00:06:25]} Qd6 {[%clk 00:29:55]} {[%emt 00:01:05]}
21. Bg3 {[%clk 00:16:34]} {[%emt 00:04:39]} Qe7 {[%clk 00:30:23]} {[%emt
00:00:02]} 22. Bh4 {[%clk 00:16:00]} {[%emt 00:01:05]} Qd6 {[%clk 00:30:51]}
{[%emt 00:00:01]} 23. Bg3 {[%clk 00:14:46]} {[%emt 00:01:44]} Qe7 {[%emt
00:00:01]} 1/2-1/2

[Event "TOP 12F 2021"]
[Site "RENNES, France"]
[Date "2021.08.26"]
[Round "1.9"]
[White "Paehtz, Elisabeth"]
[Black "Savina, Anastasia"]
[Result "1-0"]
[TimeControl "1H30 + 30 sec/coup"]
[WhiteElo "2466"]
[BlackElo "2336"]

1. d4 {[%clk 01:30:57]} {[%emt 00:00:03]} d6 {[%clk 01:30:08]} {[%emt
00:00:52]} 2. g3 {[%clk 01:29:45]} {[%emt 00:01:41]} g6 {[%clk 01:28:02]}
{[%emt 00:02:36]} 3. Bg2 {[%clk 01:29:58]} {[%emt 00:00:18]} Bg7 {[%clk
01:27:17]} {[%emt 00:01:15]} 4. e4 {[%clk 01:28:22]} {[%emt 00:02:06]} Nd7
{[%clk 01:23:02]} {[%emt 00:04:45]} 5. Ne2 {[%clk 01:26:37]} {[%emt 00:02:16]}
e5 {[%clk 01:21:47]} {[%emt 00:01:44]} 6. dxe5 {[%clk 01:20:51]} {[%emt
00:06:17]} dxe5 {[%clk 01:17:42]} {[%emt 00:04:34]} 7. b3 {[%clk 01:13:53]}
{[%emt 00:07:28]} h5 {[%clk 01:02:38]} {[%emt 00:15:35]} 8. h3 {[%clk
01:10:18]} {[%emt 00:04:05]} h4 {[%clk 00:54:36]} {[%emt 00:08:32]} 9. g4
{[%clk 01:10:39]} {[%emt 00:00:09]} b6 {[%clk 00:53:34]} {[%emt 00:01:31]} 10.
a4 {[%clk 00:59:58]} {[%emt 00:11:11]} Bb7 {[%clk 00:39:52]} {[%emt 00:14:13]}
11. Ba3 {[%clk 00:55:48]} {[%emt 00:04:40]} f5 {[%clk 00:13:50]} {[%emt
00:26:32]} 12. Nec3 {[%clk 00:54:07]} {[%emt 00:02:11]} Ngf6 {[%clk 00:09:08]}
{[%emt 00:05:12]} 13. gxf5 {[%clk 00:34:39]} {[%emt 00:19:58]} gxf5 {[%clk
00:09:28]} {[%emt 00:00:10]} 14. exf5 {[%clk 00:34:52]} {[%emt 00:00:18]} Bxg2
{[%clk 00:01:20]} {[%emt 00:08:38]} 15. Rg1 {[%clk 00:35:19]} {[%emt 00:00:03]}
Bf8 {[%clk 00:00:32]} {[%emt 00:01:18]} 16. Rxg2 {[%clk 00:35:19]} {[%emt
00:00:30]} Nc5 {[%clk 00:00:36]} {[%emt 00:00:25]} 17. Nd2 {[%clk 00:29:03]}
{[%emt 00:06:46]} Qd7 {[%clk 00:00:38]} {[%emt 00:00:29]} 18. Bxc5 {[%clk
00:27:53]} {[%emt 00:01:39]} Bxc5 {[%clk 00:00:58]} {[%emt 00:00:10]} 19. Qf3
{[%clk 00:28:13]} {[%emt 00:00:09]} Rd8 {[%clk 00:00:36]} {[%emt 00:00:54]} 20.
Nde4 {[%clk 00:24:41]} {[%emt 00:04:02]} Nxe4 {[%clk 00:00:32]} {[%emt
00:00:34]} 21. Nxe4 {[%clk 00:25:06]} {[%emt 00:00:05]} Bb4+ {[%clk 00:00:32]}
{[%emt 00:00:31]} 22. c3 {[%clk 00:24:03]} {[%emt 00:01:33]} Be7 {[%clk
00:01:00]} {[%emt 00:00:01]} 23. Rg7 {[%clk 00:21:25]} {[%emt 00:03:08]} Qd3
{[%clk 00:00:36]} {[%emt 00:00:54]} 24. Qg4 {[%clk 00:21:25]} {[%emt 00:00:29]}
1-0

[Event "TOP 12F 2021"]
[Site "RENNES, France"]
[Date "2021.08.26"]
[Round "1.10"]
[White "Doluhanova, Evgeniya"]
[Black "Skripechenko, Almira"]
[Result "1/2-1/2"]
[TimeControl "1H30 + 30 sec/coup"]
[WhiteElo "2207"]
[BlackElo "2411"]

1. e4 {[%clk 01:30:45]} {[%emt 00:00:15]} d6 {[%clk 01:30:33]} {[%emt
00:00:27]} 2. d4 {[%clk 01:31:02]} {[%emt 00:00:13]} Nf6 {[%clk 01:30:56]}
{[%emt 00:00:06]} 3. Nd2 {[%clk 01:31:23]} {[%emt 00:00:10]} e5 {[%clk
01:23:42]} {[%emt 00:07:43]} 4. dxe5 {[%emt 00:03:06]} dxe5 {[%clk 01:24:03]}
{[%emt 00:00:05]} 5. Ngf3 {[%clk 01:28:17]} {[%emt 00:01:04]} Bc5 {[%clk
01:21:05]} {[%emt 00:03:29]} 6. Bd3 {[%clk 01:26:33]} {[%emt 00:02:14]} O-O
{[%emt 00:03:25]} 7. O-O {[%emt 00:04:11]} Nc6 {[%clk 01:14:55]} {[%emt
00:00:04]} 8. Nc4 {[%clk 01:25:04]} {[%emt 00:02:00]} Bg4 {[%clk 01:12:49]}
{[%emt 00:02:36]} 9. Be3 {[%clk 01:13:43]} {[%emt 00:11:51]} Qe7 {[%clk
01:08:06]} {[%emt 00:05:12]} 10. Bxc5 {[%clk 01:03:15]} {[%emt 00:10:59]} Qxc5
{[%clk 01:08:24]} {[%emt 00:00:11]} 11. Ne3 {[%clk 01:03:35]} {[%emt 00:00:12]}
Bh5 {[%clk 01:06:27]} {[%emt 00:02:27]} 12. Nf5 {[%clk 01:03:22]} {[%emt
00:00:43]} Rad8 {[%clk 00:58:23]} {[%emt 00:08:33]} 13. Ng3 {[%clk 00:53:48]}
{[%emt 00:10:04]} Bg6 {[%clk 00:52:12]} {[%emt 00:06:41]} 14. Qe2 {[%clk
00:51:17]} {[%emt 00:03:01]} Nh5 {[%clk 00:50:51]} {[%emt 00:01:50]} 15. Nxh5
{[%clk 00:47:41]} {[%emt 00:04:06]} Bxh5 {[%clk 00:49:51]} {[%emt 00:01:30]} 16.
Qe3 {[%clk 00:39:47]} {[%emt 00:08:24]} Qxe3 {[%clk 00:44:30]} {[%emt
00:05:51]} 17. fxe3 {[%clk 00:40:12]} {[%emt 00:00:06]} f6 {[%clk 00:42:16]}
{[%emt 00:02:43]} 18. a3 {[%clk 00:40:16]} {[%emt 00:00:27]} Bf7 {[%clk
00:41:10]} {[%emt 00:01:35]} 19. Kf2 {[%clk 00:39:46]} {[%emt 00:01:00]} Ne7
{[%clk 00:35:54]} {[%emt 00:05:46]} 20. Ke2 {[%clk 00:36:02]} {[%emt 00:04:15]}
Nc8 {[%clk 00:35:51]} {[%emt 00:00:33]} 21. Nd2 {[%clk 00:17:22]} {[%emt
00:19:10]} Nd6 {[%clk 00:35:20]} {[%emt 00:01:00]} 22. b3 {[%clk 00:17:23]}
{[%emt 00:00:29]} Bh5+ {[%clk 00:33:04]} {[%emt 00:02:45]} 23. Ke1 {[%clk
00:17:26]} {[%emt 00:00:27]} Bg6 {[%clk 00:31:39]} {[%emt 00:01:55]} 24. h3
{[%emt 00:02:08]} Rd7 {[%clk 00:30:26]} {[%emt 00:01:42]} 25. Ke2 {[%clk
00:14:54]} {[%emt 00:01:26]} Rfd8 {[%clk 00:30:19]} {[%emt 00:00:37]} 26. g4
{[%clk 00:14:00]} {[%emt 00:01:25]} c5 {[%clk 00:24:41]} {[%emt 00:06:08]} 27.
a4 {[%clk 00:13:09]} {[%emt 00:01:22]} b6 {[%clk 00:23:56]} {[%emt 00:01:15]}
28. Kf3 {[%clk 00:07:49]} {[%emt 00:05:50]} Bf7 {[%clk 00:23:47]} {[%emt
00:00:38]} 29. Rf2 {[%clk 00:06:05]} {[%emt 00:02:14]} Be6 {[%clk 00:20:01]}
{[%emt 00:04:16]} 30. Rg1 {[%clk 00:06:03]} {[%emt 00:00:32]} Rf8 {[%clk
00:18:01]} {[%emt 00:02:30]} 31. Ke2 {[%clk 00:05:50]} {[%emt 00:00:43]} h6
{[%clk 00:15:07]} {[%emt 00:03:24]} 32. h4 {[%clk 00:06:06]} Rfd8 {[%clk
00:14:41]} {[%emt 00:01:10]} 33. g5 {[%clk 00:04:35]} {[%emt 00:02:02]} fxg5
{[%clk 00:14:55]} {[%emt 00:00:16]} 34. hxg5 {[%clk 00:05:02]} {[%emt
00:00:03]} h5 {[%clk 00:15:20]} {[%emt 00:00:05]} 35. g6 {[%clk 00:05:01]}
{[%emt 00:00:31]} Bg4+ {[%clk 00:13:19]} {[%emt 00:02:31]} 36. Ke1 {[%clk
00:04:16]} {[%emt 00:01:15]} Re7 {[%clk 00:12:13]} {[%emt 00:01:37]} 37. Be2
{[%clk 00:02:10]} {[%emt 00:02:36]} Re6 {[%clk 00:11:18]} {[%emt 00:01:24]} 38.
Bxg4 {[%clk 00:01:08]} {[%emt 00:01:32]} Rxg6 {[%clk 00:11:42]} {[%emt
00:00:06]} 39. Rfg2 {[%clk 00:01:35]} {[%emt 00:00:03]} hxg4 {[%clk 00:11:35]}
{[%emt 00:00:37]} 40. Rxg4 {[%clk 00:02:03]} {[%emt 00:00:03]} Rxg4 {[%clk
00:11:56]} {[%emt 00:00:09]} 41. Rxg4 {[%clk 00:02:30]} {[%emt 00:00:02]} Kf7
{[%clk 00:10:20]} {[%emt 00:02:05]} 42. Ke2 {[%clk 00:02:41]} {[%emt 00:00:20]}
Kf6 {[%clk 00:09:55]} {[%emt 00:00:55]} 43. Rg1 {[%clk 00:01:25]} {[%emt
00:01:46]} Rh8 {[%clk 00:08:14]} {[%emt 00:02:12]} 44. Kd3 {[%clk 00:01:01]}
{[%emt 00:00:54]} Rd8 {[%clk 00:07:16]} {[%emt 00:01:27]} 45. Ke2 {[%clk
00:01:22]} {[%emt 00:00:09]} a6 {[%clk 00:07:33]} {[%emt 00:00:13]} 46. Rf1+
{[%clk 00:01:34]} {[%emt 00:00:18]} Ke6 {[%clk 00:07:12]} {[%emt 00:00:51]} 47.
Rg1 {[%clk 00:01:58]} {[%emt 00:00:06]} Rd7 {[%clk 00:06:44]} {[%emt 00:00:57]}
48. Rg6+ {[%clk 00:01:17]} {[%emt 00:01:11]} Kf7 {[%clk 00:07:09]} {[%emt
00:00:05]} 49. Nf3 {[%clk 00:01:21]} {[%emt 00:00:27]} Kxg6 {[%clk 00:05:06]}
{[%emt 00:02:33]} 50. Nxe5+ {[%clk 00:01:47]} {[%emt 00:00:04]} Kh5 {[%clk
00:05:28]} {[%emt 00:00:08]} 51. Nxd7 {[%clk 00:02:14]} {[%emt 00:00:04]} Nxe4
{[%clk 00:05:31]} {[%emt 00:00:27]} 52. Nxb6 {[%clk 00:02:34]} {[%emt
00:00:10]} g5 {[%clk 00:05:47]} {[%emt 00:00:13]} 53. Kf3 {[%clk 00:02:42]}
{[%emt 00:00:21]} Nd2+ {[%clk 00:06:11]} {[%emt 00:00:07]} 54. Kg2 {[%clk
00:01:54]} {[%emt 00:01:18]} a5 {[%clk 00:03:51]} {[%emt 00:02:50]} 55. e4
{[%clk 00:00:57]} {[%emt 00:01:27]} Kg4 {[%clk 00:03:47]} {[%emt 00:00:34]} 56.
Nd5 {[%clk 00:00:58]} {[%emt 00:00:29]} c4 {[%clk 00:00:58]} {[%emt 00:03:19]}
57. b4 {[%clk 00:01:20]} {[%emt 00:00:08]} Nxe4 {[%clk 00:01:07]} {[%emt
00:00:21]} 58. bxa5 {[%clk 00:01:28]} {[%emt 00:00:22]} Nc5 {[%clk 00:01:27]}
{[%emt 00:00:10]} 59. Ne3+ {[%clk 00:01:48]} {[%emt 00:00:10]} Kf4 {[%clk
00:01:48]} {[%emt 00:00:08]} 60. Nxc4 {[%clk 00:02:15]} {[%emt 00:00:03]} Ke4
{[%clk 00:02:05]} {[%emt 00:00:13]} 61. Nb6 {[%clk 00:00:50]} {[%emt 00:01:56]}
Kd4 {[%clk 00:02:22]} {[%emt 00:00:12]} 62. Kg3 {[%clk 00:01:04]} {[%emt
00:00:17]} Kc3 {[%clk 00:01:52]} {[%emt 00:00:59]} 63. Kg4 {[%clk 00:01:15]}
{[%emt 00:00:19]} Kb4 {[%clk 00:01:26]} {[%emt 00:00:55]} 64. Kxg5 {[%clk
00:01:31]} {[%emt 00:00:14]} Kxa5 {[%clk 00:01:49]} {[%emt 00:00:08]} 65. Nd5
{[%clk 00:01:53]} {[%emt 00:00:07]} Nxa4 {[%clk 00:01:19]} {[%emt 00:01:01]} 66.
Kf4 {[%clk 00:02:14]} {[%emt 00:00:08]} Kb5 {[%clk 00:01:38]} {[%emt 00:00:11]}
67. Ne3 {[%clk 00:02:25]} {[%emt 00:00:20]} Nc3 {[%clk 00:01:25]} {[%emt
00:00:42]} 68. Ke5 {[%clk 00:02:42]} {[%emt 00:00:13]} Kc5 {[%clk 00:01:45]}
{[%emt 00:00:09]} 69. Nf1 {[%clk 00:03:00]} {[%emt 00:00:12]} Nb1 {[%clk
00:01:23]} {[%emt 00:00:52]} 70. Ke4 {[%clk 00:03:23]} {[%emt 00:00:07]}
1/2-1/2